bitfinex/quotes_SOLUSD_20250307
["timestamp","ask_amount","ask_price","bid_price","bid_amount"]
[1741382150942,0.03,143.24,143.22,48.09411913]
[1741382151143,0.03,143.24,143.23,48.09411913]
[1741382151456,0.03,143.3,143.23,67.79066074]
[1741382151663,0.03,143.3,143.22,18.64964886]
[1741382151860,0.03,143.3,143.26,48.09411913]
[1741382152051,0.03,143.3,143.27,1.04645106]
[1741382152251,0.03,143.37,143.28,12.372]
[1741382152456,0.03,143.37,143.36,48.09411913]
[1741382153568,0.03,143.37,143.35,48.09411913]
[1741382153774,0.03,143.37,143.32,48.09411913]
[1741382153977,0.03,143.37,143.3,48.09411913]
[1741382154268,0.03,143.37,143.23,17.4541]
[1741382154269,48.09411913,143.31,143.21,8.2671]
[1741382154573,30.60964886,143.35,143.21,9.31410137]
[1741382154748,11.96,143.35,143.21,16.29670137]
[1741382154945,11.96,143.35,143.21,8.2671]
[1741382155149,12.2087,143.34,143.21,8.2671]
[1741382155463,18.64964886,143.33,143.21,8.2671]
[1741382155668,12.2087,143.34,143.26,48.09411913]
[1741382155849,12.2087,143.34,143.25,48.09411913]
[1741382156051,48.09411913,143.29,143.22,48.09411913]
[1741382156268,48.09411913,143.28,143.21,48.09411913]
[1741382156456,48.09411913,143.28,143.2,4.1248]
[1741382156457,48.09411913,143.3,143.23,48.09411913]
[1741382156762,48.29934886,143.34,143.25,48.09411913]
[1741382156763,12.2087,143.34,143.25,48.09411913]
[1741382156942,0.03,143.39,143.27,57.4919]
[1741382157148,0.03,143.39,143.36,96.18823826]
[1741382157548,0.03,143.39,143.36,97.23387131]
[1741382157766,3.517,143.39,143.34,48.09411913]
[1741382157968,12.2344,143.39,143.26,151.18]
[1741382158271,48.09411913,143.35,143.26,151.18]
[1741382158439,48.09411913,143.35,143.27,48.09411913]
[1741382158646,18.64964886,143.38,143.2,11.8631]
[1741382158969,48.09411913,143.25,143.18,48.09411913]
[1741382159161,48.09411913,143.24,143.17,48.09411913]
[1741382159358,48.09411913,143.24,143.14,14.9983]
[1741382159359,48.09411913,143.24,143.14,8.0124]
[1741382159564,30.86504886,143.26,143.12,3.7836]
[1741382159862,48.31574886,143.26,143.12,3.7836]
[1741382160068,18.64964886,143.25,143.12,10.7705]
[1741382160266,18.64964886,143.25,143.12,3.7836]
[1741382160465,48.09411913,143.22,143.15,48.09411913]
[1741382160671,60.30951913,143.26,143.19,48.09411913]
[1741382160857,3.4901,143.26,143.2,48.09411913]
[1741382161051,3.4898,143.28,143.24,48.09411913]
[1741382161268,3.4898,143.28,143.23,48.09411913]
[1741382161488,3.4898,143.28,143.17,13.00691315]
[1741382161694,48.09411913,143.24,143.12,3.7836]
[1741382161851,12.2139,143.28,143.12,3.7836]
[1741382161852,48.09411913,143.22,143.15,48.09411913]
[1741382162047,18.64964886,143.26,143.12,3.7836]
[1741382162048,48.09411913,143.2,143.12,3.7836]
[1741382162248,18.64964886,143.26,143.15,48.09411913]
[1741382162479,18.64964886,143.26,143.16,48.09411913]
[1741382162790,20.64964886,143.26,143.07,7.8112]
[1741382163079,12.2164,143.25,143.1,158.108]
[1741382163252,12.2164,143.25,143.11,1.04756051]
[1741382163466,3.4904,143.25,143.18,48.09411913]
[1741382163655,3.4904,143.25,143.19,48.09411913]
[1741382163963,48.09411913,143.23,143.13,1.0472592]
[1741382164164,18.64964886,143.27,143.18,48.09411913]
[1741382164363,3.4899,143.28,143.2,48.09411913]
[1741382164567,3.4893,143.3,143.13,42.99755683]
[1741382164866,12.2087,143.34,143.16,3.7846]
[1741382165064,18.64964886,143.31,143.16,3.7846]
[1741382165401,3.4872,143.38,143.17,21.69712005]
[1741382165679,48.09411913,143.32,143.22,48.09411913]
[1741382165885,18.64964886,143.33,143.21,48.09411913]
[1741382166180,48.09411913,143.24,143.16,3.7846]
[1741382166353,48.09411913,143.24,143.17,48.09411913]
[1741382166553,18.64964886,143.28,143.11,15.1573]
[1741382166759,48.09411913,143.19,143.11,8.1698]
[1741382166988,48.09411913,143.17,143.1,199.21411913]
[1741382167165,15.4509,143.23,143.14,48.09411913]
[1741382167363,48.09411913,143.19,143.12,48.09411913]
[1741382167576,24.1781,143.23,143.04,25.4972]
[1741382167577,18.64964886,143.16,143.04,15.0108]
[1741382167784,18.64964886,143.22,143.04,15.0108]
[1741382167960,18.64964886,143.19,143.02,6.992]
[1741382168274,18.64964886,143.21,143.02,25.52034846]
[1741382168464,12.2181,143.23,143.12,48.09411913]
[1741382168794,18.64964886,143.19,143.1,48.09411913]
[1741382168996,48.09411913,143.13,143.06,48.09411913]
[1741382169283,48.09411913,143.13,143.01,203.15621913]
[1741382169284,18.64964886,143.13,143.01,155.0621]
[1741382169479,48.09411913,143.07,142.98,7.6792]
[1741382169669,48.09411913,143.08,143.02,7.03861443]
[1741382169853,48.09411913,143.05,142.95,11.96]
[1741382170058,48.09411913,143.02,142.95,60.05411913]
[1741382170355,18.64964886,143.09,142.96,48.09411913]
[1741382170658,18.64964886,143.13,142.94,1.0491245]
[1741382170983,163.12,143.14,143.0,26.9929]
[1741382170984,18.64964886,143.14,143.0,26.9929]
[1741382171167,18.64964886,143.12,143.0,20.0]
[1741382171374,2.0,143.1,143.0,20.0]
[1741382171613,48.09411913,143.01,143.0,20.0]
[1741382171759,66.74376799,143.01,143.0,20.0]
[1741382171961,114.83788712,143.01,143.0,20.0]
[1741382172167,66.74376799,143.01,143.0,20.0]
[1741382172465,114.83788712,143.01,143.0,20.0]
[1741382172656,114.83788712,143.01,142.89,48.12711913]
[1741382172657,18.64964886,143.0,142.89,0.033]
[1741382172861,48.09411913,142.92,142.89,0.033]
[1741382173063,48.09411913,142.9,142.89,0.033]
[1741382173462,66.74376799,142.9,142.89,0.033]
[1741382173667,18.64964886,142.89,142.87,0.033]
[1741382174089,18.64964886,142.9,142.87,0.033]
[1741382174284,114.83788712,142.88,142.87,0.033]
[1741382174484,114.83788712,142.88,142.73,7.0057]
[1741382174485,18.64964886,142.87,142.73,48.09411913]
[1741382174674,48.09411913,142.79,142.72,7.5619]
[1741382174873,48.09411913,142.79,142.72,55.65601913]
[1741382175185,48.09411913,142.78,142.69,463.24]
[1741382175371,48.09411913,142.77,142.7,48.09411913]
[1741382175575,48.09411913,142.8,142.65,8.3151]
[1741382175771,48.09411913,142.71,142.65,0.033]
[1741382176291,48.09411913,142.7,142.65,0.033]
[1741382176790,30.60964886,142.76,142.65,55.13701913]
[1741382177084,30.60964886,142.76,142.65,48.12711913]
[1741382177085,48.09411913,142.72,142.65,48.12711913]
[1741382177466,48.09411913,142.74,142.67,48.09411913]
[1741382177666,48.09411913,142.74,142.65,7.0431]
[1741382177881,48.09411913,142.74,142.66,48.09411913]
[1741382178066,48.09411913,142.74,142.67,48.09411913]
[1741382178266,48.09411913,142.7,142.65,0.033]
[1741382178490,48.09411913,142.72,142.65,55.13711913]
[1741382178788,2.0,142.84,142.65,55.13711913]
[1741382178789,18.64964886,142.81,142.65,7.043]
[1741382178973,20.64964886,142.81,142.65,0.033]
[1741382179173,18.64964886,142.75,142.65,0.033]
[1741382179375,11.98,142.74,142.65,0.033]
[1741382179974,48.39645019,142.69,142.65,0.033]
[1741382180183,48.39645019,142.7,142.65,0.033]
[1741382180575,11.98,142.77,142.65,0.033]
[1741382181097,11.98,142.83,142.66,1.05101456]
[1741382181267,11.98,142.83,142.67,43.18164886]
[1741382181474,11.98,142.87,142.69,18.64964886]
[1741382181689,11.98,142.9,142.82,48.39645019]
[1741382181863,48.39645019,142.89,142.82,48.39645019]
[1741382182070,30.62964886,142.9,142.74,1.05005304]
[1741382182293,18.64964886,142.89,142.72,8.2751]
[1741382182591,11.98,142.9,142.73,19.70029345]
[1741382182968,11.98,142.9,142.72,8.2751]
[1741382183165,22.14894886,142.89,142.73,7.0062]
[1741382183366,18.64964886,142.85,142.65,20.0469]
[1741382183600,48.27757001,142.75,142.65,8.0669]
[1741382183807,18.64964886,142.78,142.66,55.28717001]
[1741382183969,48.27757001,142.73,142.66,55.32017001]
[1741382184613,11.98,142.79,142.66,55.32017001]
[1741382184614,48.27757001,142.75,142.68,48.27757001]
[1741382184772,48.27757001,142.73,142.66,48.31057001]
[1741382184972,48.27757001,142.71,142.66,0.033]
[1741382185401,48.27757001,142.7,142.66,0.033]
[1741382185605,48.27757001,142.69,142.66,0.033]
[1741382185809,48.27757001,142.67,142.66,0.033]
[1741382186173,12.2626,142.71,142.66,0.033]
[1741382186407,96.55514002,142.67,142.66,0.033]
[1741382186613,48.27757001,142.67,142.66,0.033]
[1741382187184,51.78207001,142.67,142.66,0.033]
[1741382187371,48.27757001,142.67,142.66,0.033]
[1741382187773,48.27757001,142.68,142.66,0.033]
[1741382187979,48.27757001,142.71,142.66,0.033]
[1741382188703,11.98,142.74,142.66,0.033]
[1741382188704,48.27757001,142.67,142.66,0.033]
[1741382188871,115.20478888,142.67,142.61,0.033]
[1741382189077,115.20478888,142.62,142.52,0.033]
[1741382189375,18.64964886,142.6,142.52,0.033]
[1741382190001,115.20478888,142.59,142.52,0.033]
[1741382190175,18.64964886,142.58,142.52,0.033]
[1741382190372,48.27757001,142.53,142.52,0.033]
[1741382190668,48.27757001,142.59,142.52,0.033]
[1741382190870,50.0,142.74,142.52,0.033]
[1741382190871,48.27757001,142.66,142.52,7.0495]
[1741382191074,48.27757001,142.63,142.56,48.27757001]
[1741382191295,48.27757001,142.64,142.57,48.27757001]
[1741382191473,48.27757001,142.66,142.52,0.033]
[1741382191673,48.27757001,142.59,142.52,0.033]
[1741382191973,48.27757001,142.54,142.52,0.033]
[1741382192172,2.8036,142.67,142.52,0.033]
[1741382192610,18.64964886,142.63,142.52,0.033]
[1741382192787,13.98,142.62,142.52,0.033]
[1741382192997,11.98,142.62,142.52,0.033]
[1741382193289,48.27757001,142.55,142.52,0.033]
[1741382193482,2.805,142.6,142.52,0.033]
[1741382193685,48.27757001,142.57,142.52,0.033]
[1741382193883,11.98,142.62,142.52,48.31057001]
[1741382194192,48.27757001,142.59,142.52,0.033]
[1741382194428,48.27757001,142.59,142.52,48.31057001]
[1741382194600,48.27757001,142.54,142.52,0.033]
[1741382194778,48.27757001,142.53,142.52,0.033]
[1741382195392,51.08397001,142.53,142.46,0.033]
[1741382195712,48.27757001,142.49,142.46,0.033]
[1741382196081,48.27757001,142.47,142.46,0.033]
[1741382196590,18.64964886,142.51,142.46,0.033]
[1741382196895,48.27757001,142.47,142.46,0.033]
[1741382197090,78.90721887,142.47,142.46,0.033]
[1741382197400,63.06517001,142.47,142.46,0.033]
[1741382198208,48.27757001,142.49,142.46,0.033]
[1741382198411,14.7866,142.52,142.46,0.033]
[1741382198607,48.27757001,142.52,142.46,0.033]
[1741382199105,12.0,142.54,142.46,0.033]
[1741382199283,12.0,142.54,142.49,48.27757001]
[1741382199483,48.27757001,142.58,142.51,48.27757001]
[1741382199691,12.03,142.59,142.53,48.27757001]
[1741382199897,12.03,142.59,142.54,48.27757001]
[1741382200209,0.03,142.59,142.52,48.27757001]
[1741382200408,0.03,142.59,142.56,48.27757001]
[1741382200587,0.03,142.59,142.55,48.27757001]
[1741382201090,0.03,142.59,142.57,48.27757001]
[1741382201388,0.03,142.59,142.56,48.27757001]
[1741382201809,0.03,142.59,142.52,312.0]
[1741382202013,48.30757001,142.59,142.52,48.27757001]
[1741382202215,48.30757001,142.59,142.54,48.27757001]
[1741382202216,0.03,142.59,142.54,48.27757001]
[1741382202386,0.03,142.59,142.57,48.27757001]
[1741382202586,0.03,142.59,142.55,48.27757001]
[1741382202783,48.27757001,142.57,142.51,48.27757001]
[1741382203010,48.27757001,142.57,142.5,48.27757001]
[1741382203485,48.27757001,142.55,142.49,7.7751]
[1741382203682,48.27757001,142.5,142.46,0.033]
[1741382203886,48.27757001,142.47,142.46,0.033]
[1741382204086,60.25757001,142.47,142.46,0.033]
[1741382204503,48.27757001,142.47,142.46,0.033]
[1741382204889,48.27757001,142.43,142.36,52.14677001]
[1741382205086,48.27757001,142.45,142.38,48.27757001]
[1741382205291,48.27757001,142.43,142.36,52.14677001]
[1741382205792,48.27757001,142.43,142.36,3.8692]
[1741382205987,51.08597001,142.43,142.36,52.14677001]
[1741382206228,11.98,142.48,142.38,48.27757001]
[1741382206229,48.27757001,142.45,142.38,48.27757001]
[1741382206400,48.27757001,142.45,142.36,3.8692]
[1741382206401,48.27757001,142.41,142.36,3.8692]
[1741382206713,48.27757001,142.4,142.34,56.52487001]
[1741382206936,48.27757001,142.41,142.34,56.52487001]
[1741382207890,48.27757001,142.45,142.34,56.52487001]
[1741382207891,48.27757001,142.43,142.36,48.27757001]
[1741382208097,48.27757001,142.43,142.34,15.2726]
[1741382208301,48.27757001,142.43,142.36,48.27757001]
[1741382208608,48.27757001,142.41,142.34,56.52487001]
[1741382208991,48.27757001,142.39,142.34,8.2473]
[1741382209185,48.27757001,142.38,142.3,7.0269]
[1741382209389,48.27757001,142.39,142.32,48.27757001]
[1741382209589,48.27757001,142.42,142.35,48.27757001]
[1741382209821,48.27757001,142.39,142.32,48.27757001]
[1741382210003,14.7884,142.43,142.33,48.27757001]
[1741382210209,21.8093,142.43,142.3,7.0274]
[1741382210392,48.27757001,142.39,142.32,48.27757001]
[1741382210596,21.8093,142.43,142.29,23.4774172]
[1741382210597,48.27757001,142.38,142.31,48.27757001]
[1741382211533,48.27757001,142.38,142.31,55.30437001]
[1741382211534,51.08687001,142.38,142.31,55.30437001]
[1741382211702,48.27757001,142.38,142.31,55.30437001]
[1741382211904,48.27757001,142.38,142.32,48.27757001]
[1741382212100,48.27757001,142.39,142.32,48.27757001]
[1741382212413,96.55514002,142.38,142.29,5.9082172]
[1741382212616,96.55514002,142.38,142.29,54.18578721]
[1741382212617,48.27757001,142.38,142.29,54.18578721]
[1741382212813,48.27757001,142.38,142.29,61.21358721]
[1741382213009,18.64964886,142.37,142.29,1.9455172]
[1741382213243,48.27757001,142.3,142.29,1.9455172]
[1741382213419,51.08847001,142.3,142.29,1.9455172]
[1741382213605,69.73811887,142.3,142.29,1.72e-05]
[1741382213811,69.73811887,142.3,142.28,1.72e-05]
[1741382214007,78.92721887,142.29,142.28,1.72e-05]
[1741382214325,127.20478888,142.29,142.22,0.033]
[1741382214525,48.27757001,142.23,142.22,0.033]
[1741382215014,66.92721887,142.23,142.22,6e-05]
[1741382215532,69.73951887,142.23,142.22,6e-05]
[1741382216038,63.06987001,142.23,142.22,6e-05]
[1741382216521,81.71951887,142.23,142.22,6e-05]
[1741382216717,20.64964886,142.22,142.08,8.0861]
[1741382216915,70.10067001,142.23,142.13,48.27757001]
[1741382216916,48.27757001,142.2,142.13,48.27757001]
[1741382217116,12.0,142.22,142.16,48.27757001]
[1741382217317,48.27757001,142.28,142.21,48.27757001]
[1741382217523,48.27757001,142.3,142.22,48.27757001]
[1741382217913,48.27757001,142.29,142.22,48.27757001]
[1741382218118,48.27757001,142.3,142.22,48.27757001]
[1741382218318,12.0,142.33,142.24,48.27757001]
[1741382218514,152.1,142.4,142.3,48.27757001]
[1741382218721,60.27757001,142.41,142.34,48.27757001]
[1741382218934,48.27757001,142.37,142.29,48.27757001]
[1741382219129,12.0,142.41,142.28,48.27757001]
[1741382219130,48.27757001,142.35,142.28,48.27757001]
[1741382219445,12.0,142.41,142.29,48.27757001]
[1741382219635,48.27757001,142.39,142.32,48.27757001]
[1741382219838,48.27757001,142.37,142.3,48.27757001]
[1741382220026,14.8088,142.41,142.31,48.27757001]
[1741382220027,48.27757001,142.39,142.31,48.27757001]
[1741382220334,12.0,142.41,142.36,48.27757001]
[1741382220518,48.27757001,142.45,142.38,48.27757001]
[1741382220713,48.27757001,142.44,142.32,18.64964886]
[1741382220915,48.27757001,142.44,142.29,2.0]
[1741382220916,48.27757001,142.4,142.33,48.27757001]
[1741382221314,48.27757001,142.37,142.3,48.27757001]
[1741382221522,48.27757001,142.38,142.31,48.27757001]
[1741382221924,48.27757001,142.38,142.28,48.27757001]
[1741382221925,48.27757001,142.35,142.28,48.27757001]
[1741382222536,48.27757001,142.36,142.29,48.27757001]
[1741382222845,48.27757001,142.38,142.31,48.27757001]
[1741382223052,50.27757001,142.52,142.36,48.27757001]
[1741382223216,48.27757001,142.48,142.42,48.27757001]
[1741382223414,60.25757001,142.52,142.36,26.17464886]
[1741382223640,48.27757001,142.45,142.36,26.17464886]
[1741382223854,48.27757001,142.37,142.25,11.475]
[1741382224023,48.27757001,142.33,142.26,48.27757001]
[1741382224215,48.27757001,142.34,142.27,48.27757001]
[1741382224416,48.27757001,142.34,142.25,11.475]
[1741382224746,48.27757001,142.33,142.26,48.27757001]
[1741382225153,48.27757001,142.32,142.25,59.75257001]
[1741382225314,48.27757001,142.29,142.25,3.95]
[1741382225731,48.27757001,142.26,142.18,7.752]
[1741382225926,11.98,142.29,142.21,48.27757001]
[1741382226120,11.98,142.34,142.25,48.27757001]
[1741382226344,48.27757001,142.29,142.18,7.752]
[1741382226525,48.27757001,142.29,142.22,48.27757001]
[1741382226731,48.27757001,142.3,142.22,48.27757001]
[1741382226961,48.27757001,142.33,142.26,48.27757001]
[1741382227322,11.98,142.34,142.28,48.27757001]
[1741382227525,48.27757001,142.45,142.31,48.27757001]
[1741382227857,51.08557001,142.45,142.38,48.27757001]
[1741382228024,0.03,142.46,142.4,45.27757001]
[1741382228358,0.03,142.46,142.39,18.64964886]
[1741382228656,51.11537001,142.46,142.39,48.27757001]
[1741382228854,0.03,142.46,142.41,48.27757001]
[1741382229023,0.03,142.46,142.45,48.27757001]
[1741382229222,51.08357001,142.55,142.45,96.55514002]
[1741382229421,48.27757001,142.57,142.5,48.27757001]
[1741382229723,51.08297001,142.58,142.51,48.27757001]
[1741382230024,0.03,142.59,142.56,48.27757001]
[1741382230333,0.03,142.59,142.57,48.27757001]
[1741382230526,51.11277001,142.59,142.49,7.3457]
[1741382230726,0.03,142.59,142.5,18.64964886]
[1741382231051,48.27757001,142.56,142.49,7.3457]
[1741382231258,48.27757001,142.55,142.49,7.3457]
[1741382231428,51.11277001,142.59,142.51,48.27757001]
[1741382231624,48.27757001,142.56,142.49,7.3457]
[1741382231825,48.27757001,142.51,142.46,3.8151]
[1741382232054,48.27757001,142.52,142.46,3.8151]
[1741382232227,48.27757001,142.48,142.42,8.0309]
[1741382232434,48.27757001,142.47,142.4,48.27757001]
[1741382232644,48.27757001,142.49,142.38,48.27757001]
[1741382232945,18.64964886,142.56,142.48,48.27757001]
[1741382232946,48.27757001,142.55,142.48,48.27757001]
[1741382233151,23.83842984,142.55,142.42,18.64964886]
[1741382233444,48.27757001,142.5,142.41,11.98]
[1741382233642,48.27757001,142.5,142.4,18.64964886]
[1741382233643,48.27757001,142.5,142.42,48.27757001]
[1741382233849,48.27757001,142.56,142.49,48.27757001]
[1741382234051,48.27757001,142.55,142.44,11.98]
[1741382234354,48.27757001,142.53,142.46,48.27757001]
[1741382234734,48.27757001,142.53,142.44,11.98]
[1741382234735,48.27757001,142.57,142.5,48.27757001]
[1741382234954,51.08297001,142.58,142.51,48.27757001]
[1741382235138,0.03,142.59,142.53,48.27757001]
[1741382235451,48.27757001,142.58,142.52,48.27757001]
[1741382235636,0.03,142.59,142.53,48.27757001]
[1741382236050,0.03,142.59,142.51,48.27757001]
[1741382236246,48.27757001,142.54,142.46,18.64964886]
[1741382236424,48.27757001,142.52,142.45,48.27757001]
[1741382236763,48.27757001,142.56,142.49,48.27757001]
[1741382236951,48.27757001,142.57,142.5,48.27757001]
[1741382237261,0.03,142.59,142.55,48.27757001]
[1741382237429,0.03,142.59,142.49,18.64964886]
[1741382237430,48.30757001,142.59,142.49,26.49244886]
[1741382237630,48.30757001,142.59,142.52,48.27757001]
[1741382237840,0.03,142.59,142.56,48.27757001]
[1741382238039,0.03,142.59,142.58,48.27757001]
[1741382238243,0.03,142.61,142.58,116.25637555]
[1741382238444,0.03,142.67,142.61,18.64964886]
[1741382238643,48.30757001,142.74,142.61,18.64964886]
[1741382238644,0.03,142.74,142.66,96.55514002]
[1741382238841,0.03,142.74,142.72,48.27757001]
[1741382239041,0.03,142.74,142.73,48.27757001]
[1741382239476,0.03,142.74,142.72,48.27757001]
[1741382239639,0.03,142.74,142.67,30.60964886]
[1741382239640,0.03,142.74,142.73,48.27757001]
[1741382239954,0.03,142.74,142.7,18.64964886]
[1741382240129,2.8006,142.83,142.73,115.20478888]
[1741382240330,0.03,142.89,142.73,115.20478888]
[1741382240331,48.30757001,142.89,142.82,48.27757001]
[1741382240545,0.03,142.89,142.87,48.27757001]
[1741382240939,0.03,142.89,142.88,48.27757001]
[1741382241443,2.8293,142.89,142.84,48.27757001]
[1741382241641,0.03,142.89,142.88,48.27757001]
[1741382241957,0.03,142.89,142.8,48.27757001]
[1741382242155,48.27757001,142.98,142.88,48.27757001]
[1741382242328,2.7972,143.0,142.95,48.27757001]
[1741382242966,48.27757001,142.96,142.86,18.64964886]
[1741382243265,2.7972,143.0,142.94,48.27757001]
[1741382243471,2.7972,143.0,142.95,48.27757001]
[1741382243666,4.7879916,143.01,142.89,11.94]
[1741382243877,1.9909916,143.01,142.96,48.27757001]
[1741382244050,1.9909916,143.01,142.99,48.27757001]
[1741382244254,1.9909916,143.01,143.0,48.27757001]
[1741382244446,1.9909916,143.01,143.0,66.92721887]
[1741382244850,0.03,143.04,143.01,18.64964886]
[1741382245067,0.03,143.04,143.03,48.27757001]
[1741382245372,2.8264,143.04,143.02,48.27757001]
[1741382245540,0.03,143.04,143.03,48.27757001]
[1741382245741,51.10397001,143.04,142.96,7.8452]
[1741382245956,48.27757001,143.03,142.96,56.12277001]
[1741382246159,51.10397001,143.04,142.97,48.27757001]
[1741382246670,2.8264,143.04,142.98,48.27757001]
[1741382246872,2.8264,143.04,143.01,48.27757001]
[1741382247072,0.03,143.04,142.97,19.6983757]
[1741382247369,0.03,143.04,143.03,48.27757001]
[1741382247871,0.03,143.04,143.01,48.27757001]
[1741382248079,0.03,143.04,143.03,48.27757001]
[1741382248281,0.03,143.04,142.96,7.8452]
[1741382248437,0.03,143.04,142.99,48.27757001]
[1741382248740,0.03,143.04,143.0,48.27757001]
[1741382248943,48.30757001,143.04,142.97,48.27757001]
[1741382249171,48.27757001,143.01,142.95,48.27757001]
[1741382249338,48.27757001,143.02,142.95,48.27757001]
[1741382249670,0.03,143.04,142.98,48.27757001]
[1741382249872,0.03,143.04,143.0,48.27757001]
[1741382250165,0.03,143.04,142.94,49.32657704]
[1741382250166,48.27757001,143.04,142.98,48.27757001]
[1741382250350,9.7867,143.05,142.93,151.76]
[1741382250351,48.27757001,143.02,142.95,48.27757001]
[1741382250538,48.27757001,143.0,142.93,200.03757001]
[1741382250742,48.27757001,142.97,142.89,18.64964886]
[1741382250947,48.27757001,142.95,142.88,7.2737]
[1741382251177,48.27757001,142.94,142.88,55.55127001]
[1741382251681,48.27757001,143.01,142.86,48.27757001]
[1741382251682,48.27757001,142.93,142.86,48.27757001]
[1741382251855,6.993,143.0,142.92,48.27757001]
[1741382252057,55.27057001,143.0,142.88,18.64964886]
[1741382252260,2.797,143.01,142.95,48.27757001]
[1741382252655,2.797,143.01,142.96,48.27757001]
[1741382252853,2.797,143.01,142.92,18.64964886]
[1741382253056,51.07377001,143.05,142.95,18.64964886]
[1741382253279,11.92,143.11,143.01,48.27757001]
[1741382253484,2.7952,143.1,143.03,48.27757001]
[1741382253658,51.07277001,143.1,143.03,48.27757001]
[1741382253850,48.27757001,143.09,143.02,48.27757001]
[1741382254078,48.27757001,143.07,143.0,48.27757001]
[1741382254255,48.27757001,143.09,143.02,48.27757001]
[1741382254578,48.27757001,143.06,143.0,48.27757001]
[1741382254766,48.27757001,143.09,143.02,48.27757001]
[1741382254967,48.27757001,143.06,143.0,48.27757001]
[1741382255152,48.27757001,143.01,142.89,7.9403]
[1741382255343,48.27757001,143.0,142.93,48.27757001]
[1741382255656,66.92721887,143.08,142.89,7.9403]
[1741382255657,48.27757001,142.97,142.9,48.27757001]
[1741382256071,48.27757001,142.97,142.89,7.9403]
[1741382256072,48.27757001,142.98,142.91,48.27757001]
[1741382256266,2.796,143.06,142.97,48.27757001]
[1741382256469,48.30757001,143.07,143.0,48.27757001]
[1741382256643,48.30757001,143.07,142.95,18.64964886]
[1741382256644,0.03,143.07,142.96,18.64964886]
[1741382256843,2.8258,143.07,142.96,18.64964886]
[1741382257267,9.8153,143.07,142.92,11.9]
[1741382257463,2.8258,143.07,142.93,19.69864884]
[1741382257754,9.8153,143.07,142.93,18.64964886]
[1741382257958,48.27757001,143.0,142.92,11.9]
[1741382258167,48.27757001,142.98,142.91,48.27757001]
[1741382258384,48.27757001,142.95,142.89,56.21787001]
[1741382258555,11.9,142.99,142.91,48.27757001]
[1741382258756,48.27757001,142.98,142.92,48.27757001]
[1741382259059,11.9,142.99,142.88,0.033]
[1741382259973,48.27757001,142.93,142.88,0.033]
[1741382260279,48.27757001,142.91,142.88,0.033]
[1741382260477,48.27757001,142.92,142.88,0.033]
[1741382260679,48.27757001,142.9,142.88,0.033]
[1741382260891,48.27757001,142.89,142.88,0.033]
[1741382262046,51.07687001,142.89,142.88,0.033]
[1741382263253,18.64964886,142.95,142.88,0.033]
[1741382263254,58.11387001,143.01,142.88,0.033]
[1741382263476,48.27757001,142.93,142.88,0.033]
[1741382264278,48.27757001,142.92,142.88,0.033]
[1741382264495,11.9,142.99,142.89,48.27757001]
[1741382264651,11.9,142.99,142.88,0.033]
[1741382264652,48.27757001,142.94,142.88,0.033]
[1741382264859,48.27757001,142.93,142.88,0.033]
[1741382265475,11.9,142.99,142.88,0.033]
[1741382265801,48.27757001,142.97,142.88,0.033]
[1741382266004,48.27757001,142.99,142.92,48.27757001]
[1741382266201,14.6972,143.0,142.88,18.68264886]
[1741382266202,11.9,143.0,142.94,48.27757001]
[1741382266380,158.4304,143.06,142.98,48.27757001]
[1741382266381,60.17757001,143.05,142.98,48.27757001]
[1741382266569,11.9,143.1,142.94,19.69845708]
[1741382266898,11.9,143.1,142.96,18.64964886]
[1741382267093,2.8258,143.07,142.96,18.64964886]
[1741382267301,0.03,143.07,142.96,18.64964886]
[1741382267601,0.03,143.07,143.02,48.27757001]
[1741382267799,0.03,143.07,143.03,48.27757001]
[1741382267971,0.03,143.04,143.03,48.27757001]
[1741382268171,0.03,143.04,143.03,55.26907001]
[1741382268578,0.03,143.04,143.02,48.27757001]
[1741382268776,0.03,143.04,143.0,48.27757001]
[1741382269073,0.03,143.04,143.02,48.27757001]
[1741382269480,0.03,143.07,142.97,27.52929244]
[1741382269687,0.03,143.07,142.98,20.64964886]
[1741382269983,0.03,143.07,143.0,18.64964886]
[1741382270177,0.03,143.07,143.02,25.64164886]
[1741382270393,0.03,143.07,143.0,1.27872127]